fUST/lending_fUST_20240828
["ID","MTS","AMOUNT","RATE_DAILY","PERIOD"]
[336405334,1724812046864,-500.94335105,0.00010958,2]
[336405335,1724812046886,-302.6741353,0.00010958,2]
[336405336,1724812046912,-500.0,0.00010958,2]
[336405337,1724812046934,-500.0,0.00010958,2]
[336405338,1724812046957,-500.0,0.00010958,2]
[336405339,1724812046979,-500.0,0.00010958,2]
[336405340,1724812047000,-502.2796137,0.00010958,2]
[336405341,1724812047021,-502.02114177,0.00010958,2]
[336405342,1724812047042,-503.20642777,0.00010958,2]
[336405343,1724812047064,-500.0,0.00010958,2]
[336405344,1724812047085,-501.60813842,0.00010958,2]
[336405345,1724812047109,-501.70415302,0.00010958,2]
[336405346,1724812047131,-504.02081708,0.00010958,2]
[336405347,1724812047154,-208.0648611,0.00010958,2]
[336405348,1724812047178,-407.81559044,0.00010958,2]
[336405349,1724812047412,-503.16061577,0.00010958,2]
[336405350,1724812047436,-502.2377473,0.00010958,2]
[336405351,1724812047458,-500.0,0.00010958,2]
[336405352,1724812047485,-500.0,0.00010958,2]
[336405353,1724812047507,-500.0,0.00010958,2]
[336405354,1724812047531,-500.0,0.00010958,2]
[336405355,1724812047555,-500.0,0.00010958,2]
[336405356,1724812047577,-500.0,0.00010958,2]
[336405357,1724812047601,-500.0,0.00010958,2]
[336405358,1724812047622,-500.0,0.00010958,2]
[336405359,1724812047645,-500.0,0.00010958,2]
[336405360,1724812047667,-500.0,0.00010958,2]
[336405361,1724812047689,-500.0,0.00010958,2]
[336405362,1724812047712,-187.44618193,0.00010958,2]
[336405363,1724812047734,-503.16526203,0.00010958,2]
[336405364,1724812047755,-502.05947551,0.00010958,2]
[336405365,1724812047781,-500.0,0.00010958,2]
[336405366,1724812047804,-500.0,0.00010958,2]
[336405367,1724812047827,-500.0,0.00010958,2]
[336405368,1724812047849,-500.0,0.00010958,2]
[336405369,1724812047872,-500.0,0.00010958,2]
[336405370,1724812047894,-502.07123917,0.00010958,2]
[336405371,1724812047917,-500.0,0.00010958,2]
[336405372,1724812047943,-500.0,0.00010958,2]
[336405373,1724812047965,-500.0,0.00010958,2]
[336405374,1724812047986,-500.0,0.00010958,2]
[336405375,1724812048009,-496.80838013,0.00010958,2]
[336405376,1724812048031,-500.0,0.00010958,2]
[336405377,1724812048052,-500.0,0.00010958,2]
[336405378,1724812048074,-500.65525425,0.00010958,2]
[336405379,1724812048095,-500.0,0.00010958,2]
[336405380,1724812048119,-500.0,0.00010958,2]
[336405381,1724812048141,-99.71086887,0.00010958,2]
[336405382,1724812050142,-154.60575532,0.00010957,2]
[336405383,1724812050165,-2284.37692518,0.00010958,3]
[336405384,1724812050188,-400.28913113,0.00010958,2]
[336405385,1724812050210,-500.0,0.00010958,2]
[336405386,1724812050233,-503.35298542,0.00010958,2]
[336405387,1724812050255,-503.28069811,0.00010958,2]
[336405388,1724812050281,-500.0,0.00010958,2]
[336405389,1724812050305,-716.97,0.00010958,2]
[336405390,1724812050328,-339.39538848,0.00010958,2]
[336405391,1724812050356,-501.21771706,0.00010958,2]
[336405392,1724812050377,-503.07377855,0.00010958,2]
[336405393,1724812050399,-500.0,0.00010958,2]
[336405394,1724812050424,-500.0,0.00010958,2]
[336405395,1724812050447,-490.68382733,0.00010958,2]
[336405396,1724812050472,-503.6164352,0.00010958,2]
[336405397,1724812050494,-504.62057467,0.00010958,2]
[336405398,1724812050517,-500.71122413,0.00010958,2]
[336405399,1724812050540,-614.45051971,0.00010958,2]
[336405400,1724812050561,-487.92973778,0.00010958,2]
[336405401,1724812050584,-500.0,0.00010958,2]
[336405402,1724812050606,-500.0,0.00010958,2]
[336405403,1724812050628,-500.0,0.00010958,2]
[336405404,1724812050649,-500.0,0.00010958,2]
[336405405,1724812050671,-504.44102868,0.00010958,2]
[336405406,1724812050693,-503.48339121,0.00010958,2]
[336405407,1724812050715,-500.0,0.00010958,2]
[336405408,1724812050737,-500.0,0.00010958,2]
[336405409,1724812050764,-500.0,0.00010958,2]
[336405410,1724812050786,-500.0,0.00010958,2]
[336405411,1724812050810,-500.0,0.00010958,2]
[336405412,1724812050833,-500.0,0.00010958,2]
[336405413,1724812050854,-500.0,0.00010958,2]
[336405414,1724812050876,-500.0,0.00010958,2]
[336405415,1724812050899,-500.0,0.00010958,2]
[336405416,1724812050920,-500.0,0.00010958,2]
[336405417,1724812050944,-2268.82,0.00010958,2]
[336405418,1724812050966,-500.0,0.00010958,2]
[336405419,1724812050988,-520.75717984,0.00010958,2]
[336405420,1724812051013,-589.45398109,0.00010958,2]
[336405421,1724812051036,-500.0,0.00010958,2]
[336405422,1724812051060,-500.0,0.00010958,2]
[336405423,1724812051084,-500.0,0.00010958,2]
[336405424,1724812051108,-936.02,0.00010958,2]
[336405425,1724812051132,-500.0,0.00010958,2]
[336405426,1724812051155,-500.0,0.00010958,2]
[336405427,1724812051177,-500.0,0.00010958,2]
[336405428,1724812051200,-500.0,0.00010958,2]
[336405429,1724812051223,-505.31043774,0.00010958,2]
[336405430,1724812051244,-500.0,0.00010958,2]
[336405431,1724812051270,-3849.59,0.00010958,2]
[336405432,1724812051292,-500.0,0.00010958,2]
[336405433,1724812051314,-505.19511547,0.00010958,2]
[336405434,1724812051335,-500.0,0.00010958,2]
[336405435,1724812051360,-500.0,0.00010958,2]
[336405436,1724812051383,-685.16,0.00010958,2]
[336405437,1724812051406,-379.82350217,0.00010958,2]
[336405438,1724812051429,-500.0,0.00010958,2]
[336405439,1724812051452,-500.0,0.00010958,2]
[336405440,1724812051475,-500.0,0.00010958,2]
[336405441,1724812051498,-2270.89,0.00010958,2]
[336405442,1724812051524,-1056.36,0.00010958,2]
[336405443,1724812051546,-500.0,0.00010958,2]
[336405444,1724812051570,-500.0,0.00010958,2]
[336405445,1724812051592,-500.0,0.00010958,2]
[336405446,1724812051614,-500.0,0.00010958,2]
[336405447,1724812051636,-500.0,0.00010958,2]
[336405448,1724812051657,-500.0,0.00010958,2]
[336405449,1724812051678,-500.80785076,0.00010958,2]
[336405450,1724812051701,-500.0,0.00010958,2]
[336405451,1724812051723,-500.0,0.00010958,2]
[336405452,1724812051743,-500.0,0.00010958,2]
[336405453,1724812051769,-2258.95,0.00010958,2]
[336405454,1724812051792,-500.0,0.00010958,2]
[336405455,1724812051814,-500.0,0.00010958,2]
[336405456,1724812051836,-571.72,0.00010958,2]
[336405457,1724812051860,-500.0,0.00010958,2]
[336405458,1724812051884,-500.0,0.00010958,2]
[336405459,1724812051905,-502.64264311,0.00010958,2]
[336405460,1724812051928,-2552.19,0.00010958,2]
[336405461,1724812051955,-500.0,0.00010958,2]
[336405462,1724812051979,-500.0,0.00010958,2]
[336405463,1724812052002,-500.0,0.00010958,2]
[336405464,1724812052025,-500.0,0.00010958,2]
[336405465,1724812052051,-10727.87,0.00010958,2]
[336405466,1724812052073,-500.0,0.00010958,2]
[336405467,1724812052096,-500.0,0.00010958,2]
[336405468,1724812052119,-648.24,0.00010958,2]
[336405469,1724812052143,-908.57,0.00010958,2]
[336405470,1724812052165,-500.0,0.00010958,2]
[336405471,1724812052189,-500.83303998,0.00010958,2]
[336405472,1724812052214,-402.7192812,0.00010958,2]
[336405473,1724812052239,-500.0,0.00010958,2]
[336405474,1724812052263,-500.0,0.00010958,2]
[336405475,1724812052290,-500.0,0.00010958,2]
[336405476,1724812052315,-2179.08,0.00010958,2]
[336405477,1724812052342,-500.0,0.00010958,2]
[336405478,1724812052365,-500.0,0.00010958,2]
[336405479,1724812052388,-500.0,0.00010958,2]
[336405480,1724812052411,-493.08299564,0.00010958,2]
[336405481,1724812052437,-500.0,0.00010958,2]
[336405482,1724812052465,-2227.38,0.00010958,2]
[336405483,1724812052486,-500.0,0.00010958,2]
[336405484,1724812052508,-500.0,0.00010958,2]
[336405485,1724812052531,-501.33802707,0.00010958,2]
[336405486,1724812052553,-500.0,0.00010958,2]
[336405487,1724812052576,-500.0,0.00010958,2]
[336405488,1724812052597,-500.0,0.00010958,2]
[336405489,1724812052621,-535.43568544,0.00010958,2]
[336405490,1724812052643,-501.39397568,0.00010958,2]
[336405491,1724812052668,-80.55944085,0.00010958,2]
[336405492,1724812052974,-422.1521709,0.00010958,2]
[336405493,1724812052997,-500.0,0.00010958,2]
[336405494,1724812053019,-500.0,0.00010958,2]
[336405495,1724812053041,-500.0,0.00010958,2]
[336405496,1724812053065,-500.0,0.00010958,2]
[336405497,1724812053087,-500.0,0.00010958,2]
[336405498,1724812053110,-2290.54,0.00010958,2]
[336405499,1724812053131,-500.0,0.00010958,2]
[336405500,1724812053153,-500.0,0.00010958,2]
[336405501,1724812053175,-500.0,0.00010958,2]
[336405502,1724812053197,-500.0,0.00010958,2]
[336405503,1724812053219,-500.0,0.00010958,2]
[336405504,1724812053241,-500.0,0.00010958,2]
[336405505,1724812053265,-500.0,0.00010958,2]
[336405506,1724812053286,-500.63866923,0.00010958,2]
[336405507,1724812053309,-500.0,0.00010958,2]
[336405508,1724812053331,-500.0,0.00010958,2]
[336405509,1724812053355,-500.0,0.00010958,2]
[336405510,1724812053377,-741.29,0.00010958,2]
[336405511,1724812053400,-500.0,0.00010958,2]
[336405512,1724812053423,-503.44373853,0.00010958,2]
[336405513,1724812053448,-500.0,0.00010958,2]
[336405514,1724812053469,-500.0,0.00010958,2]
[336405515,1724812053497,-500.0,0.00010958,2]
[336405516,1724812053519,-500.0,0.00010958,2]
[336405517,1724812053547,-503.85947779,0.00010958,2]
[336405518,1724812053569,-546.60211867,0.00010958,2]
[336405519,1724812053593,-500.0,0.00010958,2]
[336405520,1724812053618,-500.0,0.00010958,2]
[336405521,1724812053642,-500.0,0.00010958,2]
[336405522,1724812053667,-500.0,0.00010958,2]
[336405523,1724812053694,-527.03,0.00010958,2]
[336405524,1724812053717,-133.88136188,0.00010958,2]
[336405530,1724812163348,-19342.62159297,9.971e-05,2]
[336405636,1724812238199,-5557.37840703,9.971e-05,2]
[336405637,1724812238211,-308.89734662,0.00010544,2]
[336405638,1724812238222,-160.96489375,0.00010544,2]
[336405640,1724812238232,-535.33512,0.00010739,2]
[336405642,1724812238242,-154.95458664,0.00010739,2]
[336405643,1724812238252,-154.60575532,0.00010739,2]
[336405644,1724812238262,-1452.87339086,0.00010857,2]
[336405645,1724812238271,-757.22869209,0.00010858,2]
[336405646,1724812238281,-998.51610973,0.00010957,2]
[336405647,1724812238291,-366.11863812,0.00010958,2]
[336405648,1724812238300,-500.0,0.00010958,2]
[336405649,1724812238310,-500.0,0.00010958,2]
[336405650,1724812238324,-500.0,0.00010958,2]
[336405651,1724812238334,-501.77328764,0.00010958,2]
[336405652,1724812238345,-503.60342846,0.00010958,2]
[336405653,1724812238355,-500.0,0.00010958,2]
[336405654,1724812238365,-500.0,0.00010958,2]
[336405655,1724812238374,-500.0,0.00010958,2]
[336405656,1724812238384,-622.32,0.00010958,2]
[336405657,1724812238395,-523.92855042,0.00010958,2]
[336405658,1724812238405,-500.0,0.00010958,2]
[336405659,1724812238415,-500.0,0.00010958,2]
[336405660,1724812238424,-296.29036417,0.00010958,2]
[336405661,1724812238434,-500.0,0.00010958,2]
[336405662,1724812238443,-351.82049501,0.00010958,2]
[336405663,1724812238453,-2505.47,0.00010958,2]
[336405664,1724812238462,-500.0,0.00010958,2]
[336405665,1724812238471,-500.0,0.00010958,2]
[336405666,1724812238481,-500.0,0.00010958,2]
[336405667,1724812238491,-501.5483262,0.00010958,2]
[336405668,1724812238500,-3588.43,0.00010958,2]
[336405669,1724812238509,-501.38042307,0.00010958,2]
[336405670,1724812238518,-500.0,0.00010958,2]
[336405671,1724812238527,-526.22,0.00010958,2]
[336405672,1724812238537,-500.0,0.00010958,2]
[336405673,1724812238547,-500.0,0.00010958,2]
[336405674,1724812238556,-500.0,0.00010958,2]
[336405675,1724812238565,-604.63,0.00010958,2]
[336405676,1724812238575,-500.0,0.00010958,2]
[336405677,1724812238585,-500.0,0.00010958,2]
[336405678,1724812238594,-500.0,0.00010958,2]
[336405679,1724812238604,-500.0,0.00010958,2]
[336405680,1724812238613,-2299.92,0.00010958,2]
[336405681,1724812238623,-500.0,0.00010958,2]
[336405682,1724812238633,-500.0,0.00010958,2]
[336405683,1724812238642,-489.13795514,0.00010958,2]
[336405684,1724812238655,-954.67,0.00010958,2]
[336405685,1724812238665,-500.0,0.00010958,2]
[336405686,1724812238674,-664.2,0.00010958,2]
[336405687,1724812238683,-500.0,0.00010958,2]
[336405688,1724812238692,-519.2,0.00010958,2]
[336405689,1724812238702,-505.25350058,0.00010958,2]
[336405690,1724812238711,-4127.39,0.00010958,2]
[336405691,1724812238722,-606.49082882,0.00010958,2]
[336405692,1724812238732,-521.41444545,0.00010958,2]
[336405693,1724812238742,-500.96186234,0.00010958,2]
[336405694,1724812238752,-500.0,0.00010958,2]
[336405695,1724812238762,-500.0,0.00010958,2]
[336405696,1724812238772,-500.0,0.00010958,2]
[336405697,1724812238782,-199.74633879,0.00010958,2]
[336405698,1724812238792,-500.0,0.00010958,2]
[336405699,1724812238802,-500.0,0.00010958,2]
[336405700,1724812238812,-687.31,0.00010958,2]
[336405701,1724812238821,-2314.46,0.00010958,2]
[336405702,1724812238832,-500.0,0.00010958,2]
[336405703,1724812238843,-500.0,0.00010958,2]
[336405704,1724812238852,-500.0,0.00010958,2]
[336405705,1724812238862,-1325.83,0.00010958,2]
[336405706,1724812238871,-500.0,0.00010958,2]
[336405707,1724812238880,-500.0,0.00010958,2]
[336405708,1724812238891,-500.0,0.00010958,2]
[336405709,1724812238900,-500.0,0.00010958,2]
[336405710,1724812238909,-500.0,0.00010958,2]
[336405711,1724812238919,-500.0,0.00010958,2]
[336405712,1724812238928,-500.0,0.00010958,2]
[336405713,1724812238938,-500.0,0.00010958,2]
[336405714,1724812238948,-500.0,0.00010958,2]
[336405715,1724812238958,-2989.09,0.00010958,2]
[336405716,1724812238968,-500.0,0.00010958,2]
[336405717,1724812238978,-500.0,0.00010958,2]
[336405718,1724812238987,-500.0,0.00010958,2]
[336405719,1724812238997,-501.83939237,0.00010958,2]
[336405720,1724812239006,-3136.78,0.00010958,2]
[336405721,1724812239016,-500.0,0.00010958,2]
[336405722,1724812239025,-539.08323609,0.00010958,2]
[336405723,1724812239035,-500.0,0.00010958,2]
[336405724,1724812239045,-500.0,0.00010958,2]
[336405725,1724812239054,-500.0,0.00010958,2]
[336405726,1724812239064,-511.49187944,0.00010958,2]
[336405727,1724812239073,-500.0,0.00010958,2]
[336405728,1724812239083,-556.98,0.00010958,2]
[336405729,1724812239094,-500.92384882,0.00010958,2]
[336405730,1724812239103,-500.0,0.00010958,2]
[336405731,1724812239112,-1147.5,0.00010958,2]
[336405732,1724812239122,-500.0,0.00010958,2]
[336405733,1724812239132,-12809.68,0.00010958,2]
[336405734,1724812239141,-500.0,0.00010958,2]
[336405735,1724812239150,-2365.7,0.00010958,2]
[336405736,1724812239160,-500.0,0.00010958,2]
[336405737,1724812239170,-500.46977961,0.00010958,2]
[336405738,1724812239179,-500.0,0.00010958,2]
[336405739,1724812239188,-500.0,0.00010958,2]
[336405740,1724812239197,-500.0,0.00010958,2]
[336405741,1724812239206,-500.0,0.00010958,2]
[336405742,1724812239216,-504.064961,0.00010958,2]
[336405743,1724812239226,-2560.76,0.00010958,2]
[336405744,1724812239235,-505.52,0.00010958,2]
[336405745,1724812239244,-500.0,0.00010958,2]
[336405746,1724812239254,-2498.29,0.00010958,2]
[336405747,1724812239263,-500.0,0.00010958,2]
[336405748,1724812239273,-500.0,0.00010958,2]
[336405749,1724812239282,-500.0,0.00010958,2]
[336405750,1724812239291,-154.60575532,0.00010958,2]
[336405751,1724812239300,-500.0,0.00010958,2]
[336405752,1724812239310,-501.26345995,0.00010958,2]
[336405753,1724812239324,-500.0,0.00010958,2]
[336405754,1724812239335,-500.0,0.00010958,2]
[336405755,1724812239346,-500.0,0.00010958,2]
[336405756,1724812239357,-568.65741703,0.00010958,2]
[336405757,1724812239367,-500.0,0.00010958,2]
[336405758,1724812239377,-500.0,0.00010958,2]
[336405759,1724812239389,-500.0,0.00010958,2]
[336405760,1724812239399,-500.0,0.00010958,2]
[336405761,1724812239410,-373.3,0.00010958,2]
[336405762,1724812239421,-7143.5,0.00010958,2]
[336405763,1724812239433,-500.0,0.00010958,2]
[336405764,1724812239443,-626.38641854,0.00010958,2]
[336405765,1724812239456,-500.0,0.00010958,2]
[336405766,1724812239466,-502.64041634,0.00010958,2]
[336405767,1724812239475,-501.0487554,0.00010958,2]
[336405768,1724812239485,-500.0,0.00010958,2]
[336405769,1724812239496,-500.95372806,0.00010958,2]
[336405770,1724812239507,-500.0,0.00010958,2]
[336405771,1724812239516,-912.4,0.00010958,2]
[336405772,1724812239526,-501.45330779,0.00010958,2]
[336405773,1724812239535,-500.0,0.00010958,2]
[336405774,1724812239545,-343.39314291,0.00010958,2]
[336405775,1724812239554,-500.0,0.00010958,2]
[336405776,1724812239564,-509.64656927,0.00010958,2]
[336405777,1724812239573,-500.0,0.00010958,2]
[336405778,1724812239583,-500.77128868,0.00010958,2]
[336405779,1724812239593,-500.0,0.00010958,2]
[336405780,1724812239603,-500.0,0.00010958,2]
[336405781,1724812239612,-500.0,0.00010958,2]
[336405782,1724812239622,-500.0,0.00010958,2]
[336405783,1724812239632,-501.49429034,0.00010958,2]
[336405784,1724812239642,-848.19,0.00010959,2]
[336405785,1724812239651,-757.22869208,0.00010995,2]
[336405786,1724812239661,-3269.91940769,0.00011132,2]
[336405787,1724812239670,-757.22869208,0.00011132,2]
[336405788,1724812239680,-500.0,0.00011231,2]
[336405789,1724812239690,-500.0,0.00011231,2]
[336405790,1724812239699,-500.0,0.00011231,2]
[336405791,1724812239708,-500.0,0.00011232,2]
[336405792,1724812239717,-504.01266837,0.00011232,2]
[336405793,1724812239727,-500.0,0.00011232,2]
[336405794,1724812239736,-454.85644812,0.00011232,2]
[336405795,1724812239745,-500.0,0.00011232,2]
[336405796,1724812239755,-500.0,0.00011232,2]
[336405797,1724812239764,-501.92765703,0.00011232,2]
[336405798,1724812239774,-500.0,0.00011232,2]
[336405799,1724812239784,-511.62,0.00011232,2]
[336405800,1724812239794,-573.88740182,0.00011232,2]
[336405801,1724812239803,-500.0,0.00011232,2]
[336405802,1724812239812,-594.38,0.00011232,2]
[336405803,1724812239822,-500.0,0.00011232,2]
[336405804,1724812239833,-500.0,0.00011232,2]
[336405805,1724812239843,-500.0,0.00011232,2]
[336405806,1724812239853,-716.97,0.00011232,2]
[336405807,1724812239862,-500.0,0.00011232,2]
[336405808,1724812239872,-504.87943074,0.00011232,2]
[336405809,1724812239883,-329.81791006,0.00011232,2]
[336405810,1724812239893,-500.0,0.00011232,2]
[336405811,1724812239904,-500.0,0.00011232,2]
[336405812,1724812239915,-500.0,0.00011232,2]
[336405813,1724812239928,-501.32064174,0.00011232,2]
[336405814,1724812239940,-500.0,0.00011232,2]
[336405815,1724812239950,-190.59094043,0.00011232,2]
[336405816,1724812239960,-500.0,0.00011232,2]
[336405817,1724812239970,-500.0,0.00011232,2]
[336405818,1724812239980,-500.0,0.00011232,2]
[336405819,1724812239990,-500.0,0.00011232,2]
[336405820,1724812240002,-467.97158407,0.00011232,2]
[336405821,1724812240011,-500.0,0.00011232,2]
[336405823,1724812240023,-645.66529747,0.00011232,2]
[336405824,1724812240033,-500.0,0.00011232,2]
[336405825,1724812240044,-500.0,0.00011232,2]
[336405827,1724812240053,-500.0,0.00011232,2]
[336405829,1724812240063,-635.83566282,0.00011232,2]
[336405831,1724812240073,-504.61355716,0.00011232,2]
[336405833,1724812240082,-501.95712292,0.00011232,2]
[336405835,1724812240092,-604.02199248,0.00011232,2]
[336405837,1724812240102,-505.08217843,0.00011232,2]
[336405839,1724812240111,-648.24,0.00011232,2]
[336405841,1724812240121,-500.0,0.00011232,2]
[336405843,1724812240131,-500.0,0.00011232,2]
[336405845,1724812240141,-500.0,0.00011232,2]
[336405847,1724812240150,-500.0,0.00011232,2]
[336405849,1724812240160,-501.72921038,0.00011232,2]
[336405851,1724812240170,-503.68151862,0.00011232,2]
[336405853,1724812240179,-500.0,0.00011232,2]
[336405855,1724812240189,-165.5586792,0.00011232,2]
[336405857,1724812240199,-502.8708302,0.00011232,2]
[336405859,1724812240208,-500.0,0.00011232,2]
[336405862,1724812240217,-500.0,0.00011232,2]
[336405864,1724812240227,-160.21415116,0.00011232,2]
[336405866,1724812240236,-500.0,0.00011232,2]
[336405868,1724812240246,-501.31604962,0.00011232,2]
[336405869,1724812240255,-201.82732898,0.00011232,2]
[336405871,1724812240265,-500.0,0.00011232,2]
[336405872,1724812240274,-501.17783791,0.00011232,2]
[336405873,1724812240284,-403.68,0.00011232,2]
[336405874,1724812240294,-500.0,0.00011232,2]
[336405875,1724812240305,-503.14657419,0.00011232,2]
[336405877,1724812240317,-500.0,0.00011232,2]
[336405878,1724812240327,-500.0,0.00011232,2]
[336405879,1724812240337,-500.0,0.00011232,2]
[336405880,1724812240357,-500.0,0.00011232,2]
[336405881,1724812240367,-500.0,0.00011232,2]
[336405882,1724812240377,-622.32,0.00011232,2]
[336405883,1724812240386,-500.0,0.00011232,2]
[336405884,1724812240399,-500.0,0.00011232,2]
[336405885,1724812240411,-501.36054009,0.00011232,2]
[336405886,1724812240421,-2505.47,0.00011232,2]
[336405887,1724812240430,-500.0,0.00011232,2]
[336405888,1724812240440,-410.11641657,0.00011232,2]
[336405889,1724812240450,-3588.43,0.00011232,2]
[336405890,1724812240459,-502.81159877,0.00011232,2]
[336405891,1724812240469,-526.22,0.00011232,2]
[336405892,1724812240478,-500.0,0.00011232,2]
[336405893,1724812240487,-2299.92,0.00011232,2]
[336405894,1724812240496,-954.67,0.00011232,2]
[336405895,1724812240506,-664.2,0.00011232,2]
[336405896,1724812240516,-500.0,0.00011232,2]
[336405897,1724812240525,-4127.39,0.00011232,2]
[336405898,1724812240535,-500.0,0.00011232,2]
[336405899,1724812240544,-500.0,0.00011232,2]
[336405900,1724812240553,-534.47,0.00011232,2]
[336405901,1724812240564,-687.31,0.00011232,2]
[336405902,1724812240574,-2314.46,0.00011232,2]
[336405903,1724812240583,-1325.83,0.00011232,2]
[336405904,1724812240599,-500.0,0.00011232,2]
[336405905,1724812240608,-500.0,0.00011232,2]
[336405906,1724812240617,-500.0,0.00011232,2]
[336405907,1724812240627,-500.0,0.00011232,2]
[336405908,1724812240637,-500.0,0.00011232,2]
[336405909,1724812240646,-578.4,0.00011232,2]
[336405910,1724812240655,-508.25935746,0.00011232,2]
[336405911,1724812240664,-500.0,0.00011232,2]
[336405912,1724812240674,-2989.09,0.00011232,2]
[336405913,1724812240683,-500.0,0.00011232,2]
[336405914,1724812240693,-3136.78,0.00011232,2]
[336405915,1724812240704,-500.0,0.00011232,2]
[336405916,1724812240714,-500.0,0.00011232,2]
[336405917,1724812240723,-474.0,0.00011232,2]
[336405918,1724812240732,-556.98,0.00011232,2]
[336405919,1724812240742,-1147.5,0.00011232,2]
[336405920,1724812240752,-500.0,0.00011232,2]
[336405921,1724812240761,-12809.68,0.00011232,2]
[336405922,1724812240771,-500.0,0.00011232,2]
[336405923,1724812240780,-2365.7,0.00011232,2]
[336405924,1724812240790,-500.0,0.00011232,2]
[336405925,1724812240799,-500.0,0.00011232,2]
[336405926,1724812240810,-500.0,0.00011232,2]
[336405927,1724812240819,-500.0,0.00011232,2]
[336405928,1724812240830,-2560.76,0.00011232,2]
[336405929,1724812240840,-2498.29,0.00011232,2]
[336405930,1724812240850,-500.0,0.00011232,2]
[336405931,1724812240859,-500.0,0.00011232,2]
[336405932,1724812240869,-500.0,0.00011232,2]
[336405933,1724812240879,-500.0,0.00011232,2]
[336405934,1724812240888,-500.0,0.00011232,2]
[336405935,1724812240897,-7143.5,0.00011232,2]
[336405936,1724812240907,-335.83928284,0.00011232,2]
[336405937,1724812240918,-500.0,0.00011232,2]
[336405938,1724812240927,-912.4,0.00011232,2]
[336405939,1724812240937,-503.52680481,0.00011232,2]
[336405940,1724812240948,-500.0,0.00011232,2]
[336405941,1724812240958,-500.0,0.00011232,2]
[336405942,1724812240968,-500.0,0.00011232,2]
[336405943,1724812240978,-501.71882205,0.00011232,2]
[336405944,1724812240991,-500.50433157,0.00011273,2]
[336405945,1724812241000,-500.0,0.00011273,2]
[336405946,1724812241010,-253.98,0.00011505,2]
[336405947,1724812241020,-500.0,0.00011506,2]
[336405948,1724812241029,-500.0,0.00011506,2]
[336405949,1724812241039,-500.0,0.00011506,2]
[336405950,1724812241049,-716.97,0.00011506,2]
[336405951,1724812241059,-500.0,0.00011506,2]
[336405952,1724812241069,-500.0,0.00011506,2]
[336405953,1724812241080,-500.0,0.00011506,2]
[336405954,1724812241090,-202.29121526,0.00011506,2]
[336405955,1724812241100,-341.32125659,0.00011506,2]
[336405956,1724812241110,-500.0,0.00011506,2]
[336405957,1724812241120,-500.0,0.00011506,2]
[336405958,1724812241133,-500.0,0.00011506,2]
[336405959,1724812241143,-275.61141307,0.00011506,2]
[336405960,1724812241152,-500.0,0.00011506,2]
[336405961,1724812241162,-648.24,0.00011506,2]
[336405963,1724812241172,-274.03727541,0.00011506,2]
[336405964,1724812241183,-500.0,0.00011506,2]
[336405965,1724812241193,-500.0,0.00011506,2]
[336405966,1724812241203,-503.29847344,0.00011506,2]
[336405967,1724812241213,-507.11129092,0.00011506,2]
[336405968,1724812241223,-500.0,0.00011506,2]
[336405969,1724812241233,-501.90842142,0.00011506,2]
[336405970,1724812241243,-500.0,0.00011506,2]
[336405971,1724812241255,-500.0,0.00011506,2]